bitfinex/quotes_ETHUSD_20241124
["timestamp","ask_amount","ask_price","bid_price","bid_amount"]
[1732446738316,0.21459386,3355.2,3353.0,0.02980572]
[1732446738475,0.24450375,3355.1,3354.3,3.0]
[1732446738817,0.21457799,3355.0,3354.3,3.0]
[1732446738971,0.21457799,3354.9,3354.3,3.0]
[1732446739174,0.21457799,3354.8,3354.4,0.02980953]
[1732446739402,0.38407022,3355.7,3353.7,0.7715]
[1732446739617,2.80591771,3356.3,3353.8,0.57980397]
[1732446739773,0.85631117,3356.2,3353.8,0.57980397]
[1732446739977,0.97796743,3356.1,3353.8,0.57980397]
[1732446740220,0.34343398,3356.0,3353.8,0.57980397]
[1732446740418,0.34343398,3355.9,3353.8,0.57980397]
[1732446740632,0.21464087,3355.8,3353.8,0.57980397]
[1732446740790,0.34343398,3355.9,3354.1,0.7641]
[1732446740976,0.34343398,3356.2,3354.2,0.95716533]
[1732446741176,3.02209267,3356.8,3354.2,0.95716533]
[1732446741177,0.26271082,3356.1,3354.2,0.57979496]
[1732446741378,0.26271082,3356.1,3354.3,0.37737037]
[1732446741379,0.04795956,3356.1,3354.3,0.37737037]
[1732446741693,2.83604503,3357.4,3356.3,3.0]
[1732446741892,0.04795956,3356.0,3354.6,0.02979222]
[1732446742097,0.58282119,3357.3,3356.6,3.0]
[1732446742297,0.60513318,3357.2,3356.6,3.0]
[1732446742511,0.21471603,3357.1,3356.9,3.0]
[1732446742710,0.36049139,3357.2,3356.9,3.0]
[1732446742910,0.21471902,3357.1,3354.8,0.57978956]
[1732446743122,0.21471902,3357.0,3355.0,0.55]
[1732446743427,2.99216691,3357.8,3355.1,1.17125434]
[1732446743428,2.37664782,3357.8,3355.1,1.17125434]
[1732446743578,0.51386067,3357.7,3355.2,1.3141]
[1732446743773,0.21464398,3357.6,3357.3,3.0]
[1732446743981,0.02992576,3358.4,3357.3,3.0]
[1732446744179,0.48286249,3358.3,3357.3,3.0]
[1732446744377,0.24453131,3358.2,3357.3,3.0]
[1732446744613,0.21460555,3358.1,3355.5,0.02978248]
[1732446744783,0.24453131,3358.0,3355.5,0.02978248]
[1732446744986,0.21460555,3357.9,3357.3,3.0]
[1732446745616,0.36202094,3358.3,3355.5,0.02978248]
[1732446745617,0.24453131,3357.8,3355.5,0.02978248]
[1732446745828,0.02992576,3357.8,3355.5,0.27381972]
[1732446745977,0.02992576,3358.3,3357.5,3.0]
[1732446746183,3.0024007,3358.8,3356.3,0.7641]
[1732446746184,0.02992576,3358.7,3357.6,3.0]
[1732446746416,0.33016583,3358.7,3357.6,3.0]
[1732446746716,0.21445296,3358.6,3357.9,3.0]
[1732446746922,0.21445296,3358.5,3356.4,0.02977492]
[1732446747221,0.02992576,3359.2,3358.1,3.0]
[1732446747377,0.53230956,3359.1,3356.5,0.02977348]
[1732446747576,0.21420577,3359.0,3358.1,3.0]
[1732446747822,0.21420577,3358.9,3358.1,3.0]
[1732446747979,0.02992576,3358.8,3358.1,3.0]
[1732446748177,0.21420577,3358.7,3358.0,3.0]
[1732446748379,0.57992576,3358.6,3356.5,0.02977348]
[1732446748615,0.57992576,3358.6,3357.5,3.0]
[1732446748616,0.59385899,3358.5,3357.5,3.0]
[1732446748821,0.59385899,3358.5,3357.9,3.0]
[1732446748822,0.2140184,3358.5,3357.9,3.0]
[1732446749119,3.3588643,3358.9,3356.9,0.7641]
[1732446749120,0.3564636,3358.9,3356.9,0.7641]
[1732446749281,0.21392389,3358.8,3357.0,0.0297752]
[1732446749478,0.3564636,3358.9,3358.2,3.0]
[1732446749822,0.0499816,3358.7,3358.3,0.02977441]
[1732446750039,0.37527834,3359.2,3358.8,3.0]
[1732446750329,0.1487114,3359.4,3357.0,0.57977027]
[1732446750695,0.1487114,3359.4,3358.7,3.0]
[1732446750887,0.1487114,3359.4,3357.0,0.02977027]
[1732446750888,0.24374873,3359.3,3357.0,0.02977027]
[1732446751092,0.21382471,3359.2,3357.0,0.02977027]
[1732446751290,0.21382471,3359.2,3356.0,0.37737037]
[1732446751291,0.24375047,3359.1,3358.3,3.0]
[1732446751595,0.57992576,3359.3,3358.3,3.0]
[1732446751803,0.213695,3359.2,3358.3,3.0]
[1732446751995,0.02992576,3359.1,3358.3,3.0]
[1732446752305,0.1487114,3359.4,3356.6,0.02977527]
[1732446752520,0.1487114,3359.4,3356.8,0.55]
[1732446752826,0.1487114,3359.4,3358.6,3.0]
[1732446753610,0.0499816,3359.3,3356.9,0.0297719]
[1732446754021,0.1487114,3359.4,3358.8,3.0]
[1732446754402,0.0499816,3359.3,3358.8,3.0]
[1732446754631,0.0499816,3359.3,3357.1,0.57977006]
[1732446754798,0.0499816,3359.3,3358.8,3.0]
[1732446754993,0.1487114,3359.4,3358.8,3.0]
[1732446755530,0.1487114,3359.4,3357.4,0.02977004]
[1732446755737,0.1487114,3359.4,3358.8,3.0]
[1732446756218,0.1487114,3359.4,3359.0,3.0]
[1732446757426,0.1487114,3359.4,3357.4,0.02977004]
[1732446757639,0.1487114,3359.4,3359.0,3.0]
[1732446757844,0.1487114,3359.4,3357.4,0.02977004]
[1732446757845,0.1487114,3359.4,3359.1,3.0]
[1732446758029,0.1487114,3359.4,3358.0,0.7541]
[1732446758229,0.1487114,3359.4,3358.1,0.02976782]
[1732446759243,0.1487114,3359.4,3357.7,0.02976994]
[1732446759748,0.55,3359.3,3357.7,0.02976994]
[1732446759906,0.02992576,3359.2,3357.2,0.02977754]
[1732446760106,0.02992576,3359.2,3356.9,0.02978046]
[1732446760640,0.02992576,3359.2,3356.1,1.12777037]
[1732446760641,0.02992576,3359.2,3356.2,0.02978106]
[1732446760847,0.26468908,3359.1,3356.3,0.37737037]
[1732446761144,0.57992576,3359.0,3356.4,0.02978061]
[1732446761306,0.63104566,3359.0,3356.5,0.37737037]
[1732446761641,0.63104566,3359.0,3356.6,0.02977883]
[1732446761837,0.63104566,3359.0,3356.3,0.02978068]
[1732446762220,0.21360004,3358.9,3356.3,0.02978068]
[1732446762418,0.21360004,3358.8,3356.3,0.40715105]
[1732446762741,0.02992576,3358.7,3356.4,0.37737037]
[1732446762943,0.02992576,3358.8,3356.5,0.02978051]
[1732446763235,0.02992576,3358.8,3358.1,3.0]
[1732446763445,0.05086208,3358.7,3356.5,0.40715088]
[1732446763609,0.05086208,3358.7,3356.6,0.92737037]
[1732446763804,0.1487114,3359.4,3358.4,3.0]
[1732446764009,0.1487114,3359.4,3356.7,0.02977521]
[1732446764010,0.21419271,3359.3,3356.9,0.55]
[1732446764251,0.21419271,3359.2,3358.8,3.0]
[1732446764407,0.05086208,3359.3,3358.8,3.0]
[1732446764606,0.1487114,3359.4,3357.3,0.57977251]
[1732446764816,0.21441407,3359.3,3357.3,0.57977251]
[1732446765049,0.24433983,3359.2,3357.3,0.02977251]
[1732446765219,0.26532951,3359.1,3358.6,3.0]
[1732446765419,0.24433983,3359.0,3356.9,0.02977502]
[1732446765632,0.21441407,3358.9,3356.9,0.02977502]
[1732446765838,0.02992576,3358.8,3358.3,3.0]
[1732446766154,0.57992576,3359.3,3356.9,0.02977502]
[1732446766356,0.57992576,3359.3,3356.6,0.57977862]
[1732446766357,0.55,3359.1,3356.6,0.57977862]
[1732446766645,0.02992576,3359.0,3358.3,3.0]
[1732446766855,0.02992576,3359.0,3356.8,0.57977777]
[1732446767051,0.05107842,3358.9,3358.3,3.0]
[1732446767355,0.02992576,3359.2,3356.9,0.55]
[1732446767510,0.26885141,3359.1,3358.3,3.0]
[1732446767709,0.29877717,3359.0,3358.3,3.0]
[1732446767955,0.1487114,3359.4,3357.0,0.02977672]
[1732446768121,0.26886575,3359.3,3357.0,0.02977672]
[1732446768319,0.26886575,3359.3,3357.3,0.7504]
[1732446768320,0.26928096,3359.2,3357.3,0.7504]
[1732446768514,0.05086507,3359.3,3357.4,0.02977405]
[1732446768935,0.21542175,3359.2,3358.8,3.0]
[1732446769254,0.48516967,3359.1,3357.4,0.87757405]
[1732446769464,0.21580101,3359.0,3357.6,0.55]
[1732446769611,0.21580101,3358.9,3357.7,0.02976986]
[1732446769956,0.1487114,3359.4,3357.7,0.02976986]
[1732446770249,0.4855723,3359.3,3358.8,3.0]
[1732446770455,0.4855723,3359.2,3358.8,3.0]
[1732446770757,0.20192791,3359.3,3358.9,3.0]
[1732446770758,0.4855723,3359.1,3358.9,3.0]
[1732446770912,0.26975765,3359.0,3358.9,3.0]
[1732446771313,0.32062272,3359.0,3357.7,0.02976986]
[1732446771521,0.26975765,3358.9,3357.7,0.02976986]
[1732446771914,0.1487114,3359.4,3357.9,1.3004]
[1732446772117,0.04916957,3358.8,3358.1,0.55]
[1732446772329,0.1487114,3359.4,3358.2,0.02976297]
[1732446772532,0.27057439,3359.3,3358.2,0.02976297]
[1732446772731,0.04937104,3359.3,3358.2,0.02976297]
[1732446772951,0.21645086,3359.2,3358.2,0.21480395]
[1732446773119,0.1487114,3359.4,3358.2,0.02976297]
[1732446773120,0.21645086,3359.1,3358.2,0.02976297]
[1732446773333,0.21645086,3359.0,3358.3,0.02976733]
[1732446773534,0.04937696,3359.0,3358.3,0.02976733]
[1732446773731,0.1487114,3359.4,3358.3,0.02976733]
[1732446774674,0.1487114,3359.4,3358.4,0.02976554]
[1732446775261,0.18560107,3361.3,3360.4,3.0]
[1732446775262,0.45118939,3361.3,3360.4,3.0]
[1732446775427,0.7217848,3361.2,3358.6,0.55]
[1732446775628,0.30052117,3361.1,3358.8,0.55]
[1732446775822,0.31997237,3361.0,3358.9,0.0297562]
[1732446776059,0.30052117,3360.9,3360.7,3.0]
[1732446776366,0.18560107,3361.8,3360.7,3.0]
[1732446776367,0.27059541,3360.8,3360.7,3.0]
[1732446776539,0.31997237,3360.8,3360.4,3.0]
[1732446776727,0.31997237,3360.8,3358.9,0.0297562]
[1732446776728,0.27059541,3360.7,3358.9,0.0297562]
[1732446776922,0.04937696,3360.8,3360.4,3.0]
[1732446777123,0.57992576,3361.7,3360.4,3.0]
[1732446777362,0.55,3361.5,3358.9,0.27302083]
[1732446777578,0.55,3361.3,3358.9,0.0297562]
[1732446777862,0.30026746,3361.4,3360.1,3.0]
[1732446777863,0.55,3361.1,3360.1,3.0]
[1732446778032,0.55,3361.1,3358.6,0.02976303]
[1732446778033,0.55,3360.9,3360.0,3.0]
[1732446778239,0.55,3360.7,3360.0,3.0]
[1732446778535,0.27031701,3360.6,3360.0,3.0]
[1732446778747,0.02992576,3360.5,3358.6,0.02976226]
[1732446778947,0.02992576,3360.5,3360.0,3.0]
[1732446779463,0.02992576,3361.0,3360.0,3.0]
[1732446779627,0.31967786,3360.9,3358.6,0.02976226]
[1732446779965,0.85022511,3360.8,3360.0,3.0]
[1732446780170,0.02992576,3360.8,3360.0,3.0]
[1732446780374,0.04998711,3360.7,3360.1,3.0]
[1732446780581,0.02992576,3360.6,3358.6,0.02976226]
[1732446780738,0.27025292,3360.5,3358.6,0.02976226]
[1732446781075,0.32852809,3360.4,3358.6,0.02976226]
[1732446781584,0.04998711,3360.3,3358.6,0.02976226]
[1732446781935,0.04998711,3360.3,3358.4,0.02976536]
[1732446781936,0.02992576,3360.2,3358.4,0.02976536]
[1732446782181,0.02992576,3360.2,3359.3,3.0]
[1732446782392,3.01502803,3360.5,3358.4,0.02976536]
[1732446782673,0.30350894,3360.3,3358.4,0.02976536]
[1732446782878,0.30350894,3360.3,3359.3,3.0]
[1732446782879,0.07991287,3360.2,3359.3,3.0]
[1732446783047,0.33685241,3360.1,3359.3,3.0]
[1732446783248,2.7429044,3360.1,3359.3,3.0]
[1732446783480,0.04998711,3360.0,3359.3,3.0]
[1732446783649,2.40605199,3360.1,3359.3,3.0]
[1732446783983,0.86457061,3360.0,3359.3,3.0]
[1732446784282,2.40605199,3359.8,3359.3,3.0]
[1732446784483,2.40605199,3359.4,3357.9,0.02976796]
[1732446784644,2.41063802,3359.2,3357.3,0.24199472]
[1732446784840,2.41063802,3359.2,3357.2,0.8099]
[1732446784841,2.41063802,3359.2,3357.4,0.02977528]
[1732446785053,2.41063802,3359.0,3357.4,0.02977528]
[1732446785294,2.41063802,3358.7,3357.4,0.02977528]
[1732446785660,2.46062513,3358.6,3357.4,0.02977528]
[1732446785815,2.46062513,3358.6,3356.9,1.3599]
[1732446785816,2.46062513,3358.6,3357.0,0.02977485]
[1732446785970,2.41063802,3358.5,3357.1,0.2377251]
[1732446786313,2.41063802,3358.5,3357.2,0.02977503]
[1732446786488,0.04998711,3358.4,3357.2,0.02977503]
[1732446786711,2.46062513,3358.4,3357.2,0.02977503]
[1732446786914,2.46062513,3358.4,3357.3,0.8099]
[1732446787073,0.04998711,3358.4,3357.4,0.02977294]
[1732446787272,2.41063802,3358.8,3357.4,0.02977294]
[1732446787470,0.04969389,3358.7,3357.4,0.57977294]
[1732446787908,0.04969389,3358.7,3357.6,0.55]
[1732446788115,0.04969389,3358.7,3357.8,0.55]
[1732446788252,4.21440797,3359.8,3357.9,0.83966658]
[1732446788253,0.04803743,3358.6,3357.9,0.83966658]
[1732446788585,5.83849607,3360.7,3359.7,3.0]
[1732446788769,5.83849607,3360.7,3358.8,0.8099]
[1732446788770,3.02279687,3359.2,3358.9,0.57976071]
[1732446789388,0.04816777,3359.1,3358.9,0.57976071]
[1732446790567,2.11053676,3359.2,3358.9,0.57976071]
[1732446790786,2.11053676,3359.2,3359.1,0.8478]
[1732446790787,0.6493648,3359.2,3359.1,0.8478]
[1732446791022,10.84035379,3361.6,3359.3,0.2978]
[1732446791023,4.2343769,3361.6,3359.3,0.2978]
[1732446791173,5.00185772,3362.0,3359.5,0.9099]
[1732446791413,5.00185772,3362.0,3361.6,3.0]
[1732446791599,5.00185772,3362.0,3359.8,0.02974516]
[1732446791801,0.0482,3362.2,3359.8,0.02974516]
[1732446791802,0.07812576,3362.2,3361.6,3.0]
[1732446792304,0.0482,3362.1,3361.4,3.0]
[1732446792910,0.0482,3361.9,3359.8,0.02974516]
[1732446793208,0.0482,3361.5,3359.8,0.02974516]
[1732446793402,5.55185772,3361.9,3359.8,0.02975493]
[1732446793403,4.2825769,3361.3,3359.8,0.02975493]
[1732446793614,0.0482,3361.1,3359.8,0.02975493]
[1732446794477,0.0482,3361.0,3359.2,0.02975612]
[1732446794693,0.43125027,3360.9,3360.5,3.0]
[1732446794994,0.02992576,3360.9,3359.2,0.57975612]
[1732446795193,0.02992576,3360.9,3360.5,3.0]
[1732446795391,0.0482,3361.0,3360.5,3.0]
[1732446795757,0.04535344,3360.9,3360.5,3.0]
[1732446796510,0.04535344,3360.9,3359.2,0.57975612]
[1732446796788,0.04535344,3360.9,3360.5,3.0]
[1732446796964,0.04535344,3360.9,3359.2,0.57975612]
[1732446797388,0.04535344,3360.9,3360.5,3.0]
[1732446797584,0.47814647,3360.9,3360.5,3.0]
[1732446797764,0.47814647,3360.9,3359.2,0.57975612]
[1732446797965,0.04535344,3360.9,3360.5,3.0]
[1732446798897,4.27973034,3360.9,3360.5,3.0]
[1732446799073,0.04535344,3360.9,3360.5,3.0]
[1732446799268,0.04535344,3360.9,3359.2,0.82510704]
[1732446799476,0.43251138,3360.8,3359.2,0.82510704]
[1732446799695,0.0482,3360.6,3360.4,3.0]
[1732446800060,0.04546609,3360.5,3359.2,0.57975612]
[1732446800259,0.04546609,3360.5,3359.1,0.8099]
[1732446800260,0.07539185,3360.5,3359.1,0.83965808]
[1732446800498,0.43551522,3360.4,3359.1,0.02975808]
[1732446800660,0.0482,3360.2,3358.7,0.02976101]
[1732446801005,0.04545424,3360.1,3358.7,0.02976101]
[1732446801309,0.43551404,3360.0,3358.7,0.02976101]
[1732446801664,4.35514038,3359.9,3358.2,0.8117]
[1732446802002,4.23156038,3359.7,3358.3,0.02976688]
[1732446802166,4.23156038,3359.6,3358.3,0.02976688]
[1732446802504,0.04539791,3359.6,3358.3,0.02976688]
[1732446803005,4.27695829,3359.6,3358.3,0.02976688]
[1732446803215,4.23156038,3359.5,3358.3,0.02976688]
[1732446803580,0.04528819,3359.4,3358.3,0.02976688]
[1732446803817,0.42768486,3359.3,3358.3,0.02976688]
[1732446803985,0.42768486,3359.3,3358.3,0.57976688]
[1732446804187,4.23156038,3359.7,3359.3,3.0]
[1732446804500,0.0482,3359.5,3357.8,0.24363325]
[1732446804684,0.0482,3359.3,3357.4,0.0297699]
[1732446804909,4.99853069,3359.0,3357.4,0.0297699]
[1732446805124,5.04673069,3359.1,3357.5,0.02977426]
[1732446805326,4.23156038,3358.8,3357.5,0.02977426]
[1732446805624,0.24622294,3358.7,3357.5,0.02977426]
[1732446805829,4.27976038,3358.6,3357.5,0.02977426]
[1732446806293,4.27976038,3358.6,3358.1,3.0]
[1732446806294,0.0482,3358.6,3358.1,3.0]
[1732446806495,0.0482,3358.6,3357.5,0.02977426]
[1732446806688,4.23156038,3358.8,3358.1,3.0]
[1732446806997,4.23156038,3358.8,3357.3,0.8117]
[1732446806998,4.23156038,3358.7,3358.2,0.02977239]
[1732446807203,4.23156038,3358.7,3358.1,3.0]
[1732446807499,4.23156038,3358.7,3357.5,0.02977239]
[1732446807825,0.47818808,3358.6,3358.1,3.0]
[1732446808230,0.0482,3358.5,3358.1,3.0]
[1732446808930,0.0482,3358.5,3357.5,0.02977239]
[1732446809088,0.0482,3358.5,3358.1,3.0]
[1732446809302,5.00213844,3359.0,3357.5,0.02977239]
[1732446809303,0.0482,3358.9,3357.5,0.02977239]
[1732446809529,4.23461455,3358.6,3357.5,0.02977239]
[1732446809734,0.04519625,3358.5,3357.5,0.02977239]
[1732446809904,4.23461455,3358.4,3358.1,3.0]
[1732446810109,0.42798108,3358.3,3357.5,0.02977239]
[1732446810304,4.23461455,3358.5,3357.5,0.02977239]
[1732446810522,0.04519625,3358.4,3357.5,0.02977239]
[1732446811014,4.2798108,3358.4,3357.5,0.02977239]
[1732446811216,4.2798108,3358.4,3358.1,3.0]
[1732446811442,4.66259563,3358.3,3357.9,3.0]
[1732446811617,4.23461455,3358.1,3357.5,0.02977574]
[1732446811931,4.30973656,3358.0,3356.9,0.57977805]
[1732446812100,4.23461455,3357.9,3356.9,0.57977805]
[1732446812294,4.23461455,3358.0,3356.9,0.57977805]
[1732446812496,4.75565217,3357.9,3356.8,0.02978043]
[1732446812702,4.23461455,3357.8,3356.0,0.8082]
[1732446812903,4.23461455,3357.9,3356.7,0.8082]
[1732446813103,0.04519625,3357.8,3356.8,0.83798087]
[1732446813432,0.42798108,3357.7,3356.9,0.02977998]
[1732446813605,0.04519625,3357.8,3356.9,0.02977998]
[1732446813816,0.04414298,3357.6,3356.9,0.02977998]
[1732446814133,4.23461455,3358.0,3356.9,0.19439798]
[1732446814336,0.0482,3358.2,3357.0,0.02977839]
[1732446814539,4.23461455,3358.4,3357.1,0.57977713]
[1732446814746,4.23461455,3358.4,3357.2,0.02977565]
[1732446814895,4.23461455,3358.3,3358.0,3.0]
[1732446815096,4.23461455,3358.2,3358.0,3.0]
[1732446815540,0.9284953,3358.3,3358.0,3.0]
[1732446815541,4.23461455,3358.3,3358.0,3.0]
[1732446815704,4.23461455,3358.3,3357.2,0.02977565]
[1732446816032,4.23461455,3358.4,3357.2,0.02977565]
[1732446816235,4.23461455,3358.4,3358.0,3.0]
[1732446816544,4.23461455,3358.4,3357.2,0.02977565]
[1732446816699,4.23461455,3358.4,3358.0,3.0]
[1732446817037,4.23461455,3358.4,3357.8,3.0]
[1732446817238,4.662896,3358.3,3357.9,0.02978053]
[1732446817395,4.23461455,3358.3,3357.9,0.02978053]
[1732446817600,4.23461455,3358.4,3357.8,3.0]
[1732446817808,4.23461455,3358.3,3357.1,0.02977742]
[1732446818112,4.23461455,3358.4,3357.1,0.02977742]
[1732446818312,0.0482,3358.1,3356.8,0.02977753]
[1732446818538,0.0482,3358.0,3356.2,0.8136]
[1732446818747,0.02992576,3357.9,3356.4,0.8136]
[1732446819043,0.0482,3357.7,3356.2,0.02978429]
[1732446819245,0.75341666,3357.6,3355.8,0.02978865]
[1732446819414,4.23461455,3357.1,3355.9,0.8136]
[1732446819603,0.0482,3357.0,3356.0,0.02978936]
[1732446820005,0.44695244,3357.0,3356.0,0.02978936]
[1732446820524,0.44695244,3357.0,3355.8,0.0297894]
[1732446820931,0.0482,3357.0,3355.8,0.0297894]
[1732446821145,0.0482,3357.0,3356.6,3.0]
[1732446821725,0.0482,3357.0,3355.3,0.8029]
[1732446822046,0.0482,3356.8,3355.4,0.02979156]
[1732446822202,0.02992576,3356.7,3355.4,0.02979156]
[1732446822408,0.02992576,3356.7,3355.3,0.8029]
[1732446822409,0.02992576,3356.7,3355.3,0.02979597]
[1732446822604,0.02992576,3356.7,3354.9,0.26634793]
[1732446822605,0.26332656,3356.6,3354.9,0.26634793]
[1732446822846,0.24504448,3356.5,3354.9,1.21956299]
[1732446823013,0.0482,3356.4,3354.9,1.21956299]
[1732446823209,0.50480366,3356.4,3354.9,1.21956299]
[1732446823410,0.0482,3356.2,3354.1,0.8029]
[1732446824315,0.0482,3356.2,3354.2,0.8029]
[1732446824618,0.0482,3356.2,3354.2,1.08008874]
[1732446824819,0.04293109,3356.1,3354.2,1.08008874]
[1732446825126,0.0482,3356.2,3355.1,0.8029]
[1732446825321,0.0482,3356.2,3355.8,3.0]
[1732446825716,0.0482,3356.2,3355.2,0.02979422]
[1732446825911,0.0482,3356.2,3355.8,3.0]
[1732446826210,0.0482,3356.2,3354.7,0.02979829]
[1732446826411,0.0482,3356.2,3355.8,3.0]
[1732446826612,0.0482,3356.2,3354.7,0.02979829]
[1732446826816,0.0482,3356.2,3354.8,1.189895]
[1732446827126,0.0482,3356.2,3354.7,0.02979832]
[1732446827314,0.21488552,3356.1,3354.7,0.02979832]
[1732446827516,0.04283003,3356.0,3354.7,0.02979832]
[1732446827743,0.0482,3356.2,3354.7,0.02979832]
[1732446828116,0.0482,3356.2,3355.3,3.0]
[1732446829025,0.0482,3356.2,3354.7,0.02979832]
[1732446829026,0.0482,3356.2,3355.5,3.0]
[1732446829227,0.0482,3356.2,3354.8,0.02979837]
[1732446829444,0.0482,3356.2,3355.5,3.0]
[1732446829652,0.21494432,3356.1,3355.5,3.0]
[1732446829840,0.0482,3356.2,3355.5,3.0]
[1732446830147,0.0482,3356.0,3354.4,0.02980043]
[1732446830350,0.30598244,3355.9,3355.3,3.0]
[1732446830649,0.26315241,3355.8,3355.3,3.0]
[1732446830857,0.0482,3355.8,3355.3,3.0]
[1732446831217,0.0482,3355.8,3355.5,3.0]
[1732446831418,0.0482,3355.8,3354.8,0.02980026]
[1732446831627,0.0482,3355.8,3354.7,0.02980053]
[1732446831826,0.0482,3355.8,3355.3,3.0]
[1732446832063,0.0482,3355.8,3353.2,0.1]
[1732446832064,0.0482,3355.8,3354.4,0.02980266]
[1732446832243,0.21500736,3355.7,3353.9,0.02980487]
[1732446832565,0.07269633,3355.6,3353.9,0.02980487]
[1732446832775,0.28770369,3355.6,3353.9,0.02980487]
[1732446832932,0.21495584,3355.5,3353.8,0.8107]
[1732446833132,0.0482,3355.3,3353.7,0.02980834]
[1732446833445,0.0482,3355.1,3353.0,0.02981092]
[1732446833639,0.0482,3354.9,3353.0,0.02981092]
[1732446833845,0.0482,3354.7,3353.0,0.02981092]
[1732446834051,0.0482,3354.5,3353.0,0.02981092]
[1732446834366,0.25740819,3354.4,3353.0,0.02981092]
[1732446834568,0.0482,3354.3,3353.9,3.0]
[1732446834773,0.0482,3354.3,3353.0,0.02981092]
[1732446835331,0.0482,3354.3,3353.9,3.0]
[1732446835529,0.0482,3354.3,3352.8,0.24063012]
[1732446835838,0.26275908,3354.2,3352.9,0.02981995]
[1732446836166,0.25701184,3354.1,3352.2,0.02981734]
[1732446836334,0.04245235,3354.1,3352.2,0.02981734]
[1732446836535,0.0482,3354.2,3352.2,0.02981734]
[1732446836932,0.0482,3354.2,3352.3,1.13153114]
[1732446837240,0.0482,3354.2,3353.9,3.0]
[1732446837638,0.0482,3354.2,3352.5,0.55]
[1732446837937,0.0482,3354.2,3352.6,0.02981476]
[1732446838482,0.0482,3354.2,3353.8,3.0]
[1732446838632,0.0482,3354.2,3353.9,3.0]
[1732446838838,0.0482,3354.2,3352.7,0.7999]
[1732446839076,0.0482,3354.2,3353.9,3.0]
[1732446839373,0.0482,3354.2,3354.1,3.0]
[1732446839544,0.0482,3355.3,3354.1,3.0]
[1732446839747,0.25591507,3355.2,3354.2,0.02981074]
[1732446839953,0.214367,3355.2,3353.8,0.02980817]
[1732446840157,0.0482,3355.0,3354.1,3.0]
[1732446840336,0.214367,3354.9,3354.1,3.0]
[1732446840537,0.214367,3354.9,3353.4,0.0298111]
[1732446840538,0.0482,3354.7,3353.4,0.02981109]
[1732446840739,0.0482,3354.7,3354.1,3.0]
[1732446841247,0.0482,3354.5,3353.0,0.02981303]
[1732446841443,6.5,3353.9,3353.0,0.02981303]
[1732446841641,6.5,3353.9,3352.5,0.76]
[1732446841642,0.0482,3353.7,3352.6,0.02981606]
[1732446841951,0.04158378,3353.6,3352.6,0.02981787]
[1732446842151,0.04158378,3353.6,3352.0,0.76]
[1732446842152,0.79848049,3353.6,3352.4,0.02981787]
[1732446842356,0.76855473,3353.6,3352.4,0.02981787]
[1732446842556,0.21437788,3353.5,3352.4,0.02981787]
[1732446842757,0.21437788,3353.4,3352.4,0.02981787]
[1732446842950,0.04144389,3353.3,3352.4,0.02981787]
[1732446843181,0.0482,3353.5,3352.4,0.02981787]
[1732446843477,6.5,3352.5,3352.1,0.02981945]
[1732446843841,0.04144389,3352.4,3352.1,0.02981945]
[1732446844191,1e-08,3352.4,3352.1,0.02981945]
[1732446844347,0.03843459,3352.3,3352.2,1.64163114]
[1732446844677,0.0482,3353.9,3352.2,1.64163114]
[1732446844678,6.5,3352.6,3352.4,0.76]
[1732446844888,6.5,3352.6,3352.5,0.57982131]
[1732446845188,5.7215,3352.6,3352.5,0.77468543]
[1732446845484,1.11754388,3352.6,3352.5,0.77468543]
[1732446845859,0.0482,3353.9,3353.6,3.0]
[1732446846088,0.0482,3355.1,3353.6,3.0]
[1732446846260,0.0482,3354.9,3353.6,3.0]
[1732446846756,0.0482,3354.7,3353.9,3.0]
[1732446847086,0.0482,3354.5,3352.9,0.02981501]
[1732446847254,0.0482,3354.5,3353.9,3.0]
[1732446847580,0.0482,3354.5,3353.8,3.0]
[1732446847784,0.0482,3354.5,3352.7,0.02981472]
[1732446848004,0.0482,3354.5,3351.3,1.237188]
[1732446848005,0.0482,3354.3,3351.9,0.2978]
[1732446848149,0.12992576,3354.4,3351.9,0.32762305]
[1732446848150,0.55,3354.0,3351.9,0.32762305]
[1732446848351,0.0482,3353.8,3351.7,0.32762478]
[1732446848545,0.02992576,3353.7,3351.7,0.2978]
[1732446848748,0.0482,3353.6,3351.7,0.2978]
[1732446849050,0.0482,3353.4,3351.8,0.02982725]
[1732446849648,0.0482,3353.4,3352.9,3.0]
[1732446849871,0.55793919,3353.3,3351.9,0.8478]
[1732446850089,0.55932859,3353.2,3352.0,0.48840106]
[1732446850251,0.55932859,3353.2,3352.8,3.0]
[1732446850252,0.55932859,3353.1,3352.8,3.0]
[1732446850582,0.60752859,3353.0,3352.0,0.32762106]
[1732446850883,0.21512638,3352.9,3352.0,0.32762106]
[1732446851058,0.03706995,3352.9,3352.8,3.0]
[1732446851265,0.21527877,3352.9,3352.8,3.0]
[1732446851595,0.21527877,3352.9,3352.7,3.0]
[1732446851596,0.55972288,3352.9,3352.7,3.0]
[1732446851802,0.0482,3353.0,3352.0,0.2978]
[1732446851803,0.55972288,3352.8,3352.0,0.2978]
[1732446851951,0.55972288,3352.8,3351.6,0.02982433]
[1732446851952,0.34444411,3352.7,3352.1,0.02982811]
[1732446852147,0.34444411,3352.7,3351.5,0.2978]
[1732446852148,0.0370282,3352.6,3351.6,0.02982602]
[1732446852855,0.0482,3353.0,3351.6,0.02982602]
[1732446853086,0.21528959,3352.9,3352.3,1.0578]
[1732446853293,0.34450057,3353.7,3352.4,0.87761844]
[1732446853448,0.0482,3353.8,3352.5,0.16376184]
[1732446853449,0.03703118,3352.8,3352.5,0.16376184]
[1732446853654,0.0482,3353.8,3352.5,0.16376184]
[1732446853655,0.34450057,3353.5,3352.6,0.0298177]
[1732446853850,0.2153743,3353.4,3352.9,0.2978]
[1732446854071,0.34459889,3354.2,3353.8,3.0]
[1732446854268,0.34459889,3354.1,3353.0,0.0298138]
[1732446854451,0.56003648,3354.0,3353.0,0.0298138]
[1732446854786,0.0482,3353.8,3352.9,0.2978]
[1732446854970,0.0482,3353.8,3352.4,0.02981495]
[1732446854971,0.60823648,3353.7,3352.1,0.2978]
[1732446855396,0.56003648,3353.5,3353.0,3.0]
[1732446855725,0.56024342,3353.4,3353.0,3.0]
[1732446855866,0.56024342,3353.3,3352.7,3.0]
[1732446856068,0.56024342,3353.3,3351.2,0.02982243]